Cogmind - Beta 13 @@@ ROGUE MODE // 2024.07.21 @ 19:55:14 Player: CONM Result: Destroyed by G-73 Enforcer with Phase Gun Performance ------------- Evolutions (5) 2500 Regions Visited (12) 2400 Robots Destroyed (90) 450 Value Destroyed (2860) 2860 Prototype IDs (46) 920 Alien Tech Used (0) 0 Bonus (1343) 1343 TOTAL SCORE: 10473 Bonus ------- High Alert Combat Kills 43 Aligned with FarCom 300 Met Warlord at Base 500 MAIN.C Attacked Warlord 500 Cogmind --------- Core Integrity 0/1000 Matter 300/300 Energy 99/100 System Corruption 0% Temperature Cool (9) Movement Core (100) Ox1 Location -4/Proximity Caves Parts ------- > --- POWER (2) -------- (None) > --- PROPULSION (6) --- (None) > --- UTILITY (6) ------ Advanced Signal Interpreter 0b10 Decoder Chip [Generic] > --- WEAPON (3) ------- Great Axe > --- INVENTORY (5) ---- Structural Scanner Advanced Signal Interpreter Makeshift Light Armor Plating Great Axe Plasma Sword Peak State ------------ > --- POWER ------------ Light Nuclear Core Micro Nuclear Core > --- PROPULSION ------- Improved Airjet Gravmag Array Antigrav System Gyrokinetic Inverter Cooled Gravmag System > --- UTILITY ---------- Large Storage Unit Advanced Signal Interpreter Improved Melee Analysis Suite Improved Medium Armor Plating Improved Focal Shield Hacking Suite > --- WEAPON ----------- Powered Hammer Thunder Hammer Great Axe > --- INVENTORY -------- Light Deuterium Engine Improved Airjet Antigrav System Weight Redist. System Structural Scanner Advanced Signal Interpreter Improved Salvage Targeting Computer Microactuators Improved Weapon Shielding Hardened Medium Armor Plating System Shield Mass Driver Great Axe Great Axe Plasma Sword [Rating: 85] Favorites ----------- Power Ion Engine Engine Ion Engine Power Core Micro Nuclear Core Reactor Light Antimatter Reactor Propulsion Potential Leg Treads Light Treads Leg Potential Leg Hover Unit Antigrav System Utility Improved Melee Analysis Suite Device Structural Scanner Storage Medium Storage Unit Processor Improved Melee Analysis Suite Hackware Hacking Suite Protection Improved Medium Armor Plating Weapon Great Axe Energy Gun Improved EM Shotgun Ballistic Gun Assault Rifle Ballistic Cannon Advanced Assault Cannon Launcher Grenade Launcher Impact Weapon Powered Hammer Slashing Weapon Great Axe Piercing Weapon Spear Build | -11 -10 -10 -10 -9 -8 -7 -6 -5 -5 -5 -5 -4 ------- Run | Yrd Mat Min Exi Min Mat Fac Fac Fac Upp Upp War Pro Slots Evolved 10 | . . . . . 4 2 2 2 . . . . Power 1 | . . . . . . . . 1 . . . . Propulsion 4 | . . . . . 2 1 1 . . . . . Utility 4 | . . . . . 2 1 . 1 . . . . Weapon 1 | . . . . . . . 1 . . . . . Parts Attached 133 | 7 1 1 1 2 22 30 3 37 2 14 12 1 Power 15 | 1 1 . . . 2 4 . 4 . 2 1 . Engine 7 | 1 1 . . . 1 2 . 1 . 1 . . Core 7 | . . . . . 1 2 . 3 . 1 . . Reactor 1 | . . . . . . . . . . . 1 . Propulsion 32 | 2 . . . . 6 3 1 13 1 2 4 . Treads 2 | 2 . . . . . . . . . . . . Leg 10 | . . . . . 6 3 1 . . . . . Wheel . | . . . . . . . . . . . . . Hover 20 | . . . . . . . . 13 1 2 4 . Flight . | . . . . . . . . . . . . . Utility 47 | 2 . . 1 1 6 10 1 14 1 6 4 1 Device 16 | 1 . . . 1 1 4 . 4 1 3 . 1 Storage 7 | 1 . . 1 . 2 1 . 2 . . . . Processor 5 | . . . . . 2 1 . 1 . . 1 . Hackware 2 | . . . . . . . 1 1 . . . . Protection 17 | . . . . . 1 4 . 6 . 3 3 . Artifact . | . . . . . . . . . . . . . Weapon 39 | 2 . 1 . 1 8 13 1 6 . 4 3 . Energy Gun 3 | . . . . . . 2 . . . . 1 . Energy Cannon . | . . . . . . . . . . . . . Ballistic Gun 5 | 2 . . . 1 2 . . . . . . . Ballistic Cannon 2 | . . . . . . 1 . 1 . . . . Launcher 11 | . . 1 . . 4 5 1 . . . . . Special Weapon . | . . . . . . . . . . . . . Impact Weapon 7 | . . . . . 2 2 . 2 . 1 . . Slashing Weapon 10 | . . . . . . 3 . 3 . 2 2 . Piercing Weapon 1 | . . . . . . . . . . 1 . . Special Melee Weapon . | . . . . . . . . . . . . . Unidentified Prototypes 5 | . . . . . . 2 . 2 . . 1 . Corrupted Parts 1 | . . . . . . 1 . . . . . . System Corruption 5 | . . . . . . 5 . . . . . . Parts Lost 62 | . . . . 1 14 1 7 10 . 13 4 12 Power 11 | . . . . . 2 . . 2 . 3 2 2 Propulsion 22 | . . . . . 3 . 4 3 . 5 2 5 Utility 18 | . . . . 1 4 . 1 4 . 4 . 4 Weapon 11 | . . . . . 5 1 2 1 . 1 . 1 Highest Loss Streak 8 | . . . . 1 6 1 7 6 . 8 2 4 To Critical Strikes . | . . . . . . . . . . . . . Average Slot Usage (%) 85 | . 100 100 100 93 80 86 74 94 94 66 63 65 Engine 6 | . 14 14 14 14 2 4 . 2 . 2 6 2 Core 2 | . . . . . 5 2 6 7 11 3 . . Treads 7 | . 28 28 28 28 4 . . . . . . . Leg 12 | . . . . . 21 36 29 . . . . . Hover 7 | . . . . . . . . 33 29 19 11 14 Device 9 | . 14 14 14 12 12 8 13 9 5 2 5 5 Storage 7 | . 14 14 14 14 9 7 6 5 5 4 . . Processor 6 | . . . . . 6 5 6 9 11 11 14 16 Protection 4 | . . . . . 3 8 4 5 5 3 4 6 Ballistic Gun 6 | . 28 14 14 22 9 . . . . . . . Launcher 2 | . . 13 14 1 3 1 . . . . . . Impact Weapon 2 | . . . . . 3 2 . 4 11 6 5 5 Slashing Weapon 4 | . . . . . . 4 5 5 5 5 11 8 Naked Turns . | . . . . . . . . . . . . . Heaviest Build 114 | 14 14 16 21 21 28 114 96 87 51 51 36 32 Greatest Support 116 | 40 40 40 40 40 85 116 96 64 62 62 57 57 Greatest Overweight (x) 2 | 1 . . . . 2 1 2 1 . 2 1 2 Average Overweight (x) . | . . . . . . . . . . . . . Largest Inventory Capacity 25 | 8 8 8 10 10 25 25 25 25 15 15 5 5 Average Capacity 12 | 7 8 8 8 10 10 21 25 11 15 13 5 5 Most Carried 25 | 4 8 8 8 10 10 25 25 23 15 15 5 5 Average Carried 11 | 2 6 7 7 9 8 19 24 9 14 12 5 5 Final Capacity 25 | 8 8 8 10 10 10 25 25 15 15 5 5 5 Final Carried 25 | 4 8 8 8 10 10 25 23 15 15 5 5 5 Class Distribution -------------------- 52% | Mutant 18% | Gladiator 16% | Scavenger-Gladiator 6% | Scavenger-Mutant 3% | Scavenger-Scout Dominant Class ---------------- Mutant | -10/Materials Mutant | -10/Mines Mutant | -10/Exiles Mutant | -9/Mines Mutant | -8/Materials Mutant | -7/Factory Scavenger-Gladiator | -6/Factory Scavenger-Scout | -5/Factory Scavenger-Gladiator | -5/Upper Caves Gladiator | -5/Upper Caves Gladiator | -5/Warlord Gladiator | -4/Proximity Caves Resources | -11 -10 -10 -10 -9 -8 -7 -6 -5 -5 -5 -5 -4 ----------- Run | Yrd Mat Min Exi Min Mat Fac Fac Fac Upp Upp War Pro Matter Collected 2440 | 255 157 65 . 166 367 643 52 449 19 157 110 . Remotely . | . . . . . . . . . . . . . Salvage Created 3002 | 58 198 60 . 109 643 1063 96 465 19 291 . . Parts 175 | 8 16 7 . 5 34 70 1 32 . 2 . . Haulers Intercepted 3 | . . . . . 1 1 . 1 . . . . Recyclers Shooed 2 | . . . . . . 1 . 1 . . . . Parts Field Recycled . | . . . . . . . . . . . . . Retrieved Matter . | . . . . . . . . . . . . . Parts Self-Destructed 1 | . . . . . . . . . . 1 . . Prevented 1 | . . . . . . . . . . 1 . . Kills | -11 -10 -10 -10 -9 -8 -7 -6 -5 -5 -5 -5 -4 ------- Run | Yrd Mat Min Exi Min Mat Fac Fac Fac Upp Upp War Pro Combat Hostiles Destroyed 59 | . 5 3 . 3 14 17 2 10 . 5 . . Melee 16 | . . . . . . 7 . 6 . 3 . . Guns 10 | . 5 1 . 1 3 . . . . . . . Cannons 4 | . . . . . . . . 4 . . . . AOE 27 | . . 2 . 2 11 10 2 . . . . . Classes Destroyed 16 | 1 4 . . 2 5 3 . . 1 . . . Worker 7 | . 2 1 . . 1 2 . 1 . . . . Builder 9 | . . . . 1 2 5 . 1 . . . . Tunneler 3 | 2 . 1 . . . . . . . . . . Hauler 3 | . . . . . 1 1 . 1 . . . . Recycler 4 | . . . . . 3 1 . . . . . . Minesweeper 1 | . . . . . . . . . 1 . . . Mechanic 1 | . . . . . . 1 . . . . . . Operator 2 | . 1 . . . . . . 1 . . . . Watcher 1 | . . . . . 1 . . . . . . . Swarmer 18 | . 2 3 . . 3 4 . 6 . . . . Grunt 24 | . 3 . . 2 8 5 2 1 . 3 . . Brawler 2 | . . . . 1 . 1 . . . . . . Sentry 3 | . . . . . 1 2 . . . . . . Specialist 2 | . . . . . 2 . . . . . . . Hunter 3 | . . . . . . 1 . . . 2 . . Programmer 7 | . . . . . . 4 . 3 . . . . Best Kill Streak 6 | 1 3 4 . 3 5 6 2 4 1 3 . . Combat Bots Only 5 | . 2 3 . 3 5 5 2 4 . 3 . . Max Kills in Single Turn 4 | 1 1 4 . 1 2 3 2 1 1 1 . . Gunslinging . | . . . . . . . . . . . . . Exploded 3 | . . 2 . 1 2 3 2 . . . . . Melee 1 | . . . . . . 1 . 1 . 1 . . Uniques/NPCs Destroyed . | . . . . . . . . . . . . . Combat | -11 -10 -10 -10 -9 -8 -7 -6 -5 -5 -5 -5 -4 -------- Run | Yrd Mat Min Exi Min Mat Fac Fac Fac Upp Upp War Pro Hostile Shots Fired 674 | . 35 4 . 10 116 136 28 128 10 92 11 104 Missed 196 | . 12 2 . 4 30 42 5 32 2 22 5 40 Damage Taken 8266 | . 244 17 . 246 1507 1199 535 1844 130 1220 226 1098 Core 1513 | . 27 . . 67 133 107 174 233 . 293 68 411 Absorbed by Shields . | . . . . . . . . . . . . . Redirected to Shielding 45 | . . . . . . . . . . . . 45 Ignored by Resistances 183 | . . . . . . 12 . 69 . 102 . . Regen/Repaired (Parts) 39 | . . . . . . . . . . . 39 . Core Remaining (%) 80 | 100 . . . 62 75 84 79 . . . . . Volleys Fired 115 | 2 31 2 . 11 40 10 2 17 . . . . Largest 2 | 2 2 2 . 2 2 2 1 1 . . . . Hottest 81 | 40 40 50 . 50 63 81 36 48 . . . . Shots Fired 181 | 4 62 4 . 16 61 13 2 19 . . . . Gun 128 | 4 62 2 . 12 46 2 . . . . . . Cannon 19 | . . . . . . . . 19 . . . . Launcher 34 | . . 2 . 4 15 11 2 . . . . . Special . | . . . . . . . . . . . . . Kinetic 145 | 4 62 2 . 12 46 . . 19 . . . . Thermal . | . . . . . . . . . . . . . Explosive 21 | . . 2 . 4 15 . . . . . . . Electromagnetic 15 | . . . . . . 13 2 . . . . . Robot Hit Streak 14 | 3 9 5 . 6 14 5 4 3 . . . . Robot Miss Streak 2 | . 2 . . 1 2 1 1 2 . . . . Penetration Max 1 | . . . . . 1 . . . . . . . Secondary Targets 1 | . 1 . . . . . . . . . . . Max Gunslinging Chain 1 | . 1 . . . . . . . . . . . Shots Hit Robots 200 | 3 41 2 . 12 38 44 1 36 1 20 . 2 Core Hits 131 | 2 17 6 . 6 47 28 5 14 . 6 . . Critical Kills . | . . . . . . . . . . . . . Critical Parts Destroyed 8 | . 2 . . . . 1 . 2 1 2 . . Critical Strikes 13 | . 2 . . . . 3 . 4 1 3 . . Destroy 2 | . 2 . . . . . . . . . . . Smash 6 | . . . . . . 1 . 2 1 2 . . Sever 5 | . . . . . . 2 . 2 . 1 . . Melee Attacks 183 | . . . . . 5 72 1 72 1 25 . 7 Impact 61 | . . . . . 5 15 . 23 1 15 . 2 Slashing 116 | . . . . . . 57 1 49 . 4 . 5 Piercing 6 | . . . . . . . . . . 6 . . Sneak Attacks 19 | . . . . . 3 11 . 4 1 . . . Combat Hostiles . | . . . . . . . . . . . . . Follow-up Attacks 15 | . . . . . . . . 6 . 6 . 3 Damage Inflicted 9637 | 36 428 134 . 360 2029 3260 568 1722 139 884 . 77 Guns 1084 | 36 428 22 . 130 448 20 . . . . . . Cannons 268 | . . . . . . . . 268 . . . . Explosions 3076 | . . 112 . 230 1270 896 568 . . . . . Melee 5208 | . . . . . 311 2344 . 1453 139 884 . 77 Ramming 1 | . . . . . . . . 1 . . . . Kinetic 1332 | 36 428 22 . 130 448 . . 268 . . . . Thermal 258 | . . . . . . 258 . . . . . . Explosive 2284 | . . 112 . 230 1270 251 421 . . . . . Electromagnetic 554 | . . . . . . 407 147 . . . . . Impact 1981 | . . . . . 311 540 . 380 139 574 . 37 Slashing 3086 | . . . . . . 1804 . 1073 . 169 . 40 Piercing 141 | . . . . . . . . . . 141 . . Highest Corruption 9 | . . . . 2 . 7 . 9 9 9 9 . Average Corruption 5 | . . . . 2 . 5 . 4 9 9 9 . Corruption Purged . | . . . . . . . . . . . . . Corruption Blocked 4 | . . . . . . . . . . . 4 . Effects 102 | . . . . 10 . 54 . 13 9 15 1 . Message Errors 23 | . . . . 4 . 12 . 2 2 3 . . Matter Fused 26 | . . . . 2 . 13 . 4 2 5 . . Heat Flow Errors 12 | . . . . 2 . 9 . . . 1 . . Energy Discharges 18 | . . . . 1 . 8 . 1 2 5 1 . Parts Fused 1 | . . . . . . . . . 1 . . . Data Loss (minor) 8 | . . . . . . 7 . 1 . . . . Data Loss (major) 8 | . . . . . . 2 . 3 2 1 . . Misfires 3 | . . . . 1 . . . 2 . . . . Alerts 3 | . . . . . . 3 . . . . . . Overload Shots . | . . . . . . . . . . . . . Overflow Damage 1397 | . . . . 10 218 608 43 209 139 170 . . Projectiles . | . . . . . . . . . . . . . Explosions 62 | . . . . 10 7 2 43 . . . . . Melee 1335 | . . . . . 211 606 . 209 139 170 . . Knockbacks 11 | . . . . . . 2 . 7 1 1 . . Impact 7 | . . . . . . 2 . 3 1 1 . . Kinetic 4 | . . . . . . . . 4 . . . . Secondary . | . . . . . . . . . . . . . Self-Inflicted Damage 631 | . . . . 117 239 109 166 . . . . . Shots 16 | . . . . 4 6 3 3 . . . . . Rammed 1 | . . . . . . . . 1 . . . . Targets Rammed 1 | . . . . . . . . 1 . . . . Kicked . | . . . . . . . . . . . . . Crushed . | . . . . . . . . . . . . . Highest Temperature 408 | . 21 . . 236 80 276 15 151 10 234 408 349 Average Temperature 76 | . 8 . . 95 36 98 9 40 1 38 190 204 Received Heat Transfer 1596 | . 117 . . 12 702 159 90 63 9 297 18 129 Effects 10 | . . . . . . 1 . . . 1 6 2 Shutdowns 5 | . . . . . . . . . . . 3 2 Energy Bleed 3 | . . . . . . 1 . . . . 2 . Interference 1 | . . . . . . . . . . 1 . . Damage (minor) 1 | . . . . . . . . . . . 1 . Siege Activations . | . . . . . . . . . . . . . Robots Corrupted . | . . . . . . . . . . . . . Combat Hostiles . | . . . . . . . . . . . . . Parts Fried 17 | . . . . . 5 8 . . . 4 . . Impact Corruptions 32 | . . . . . 6 11 . 5 4 6 . . Robots Melted . | . . . . . . . . . . . . . Combat Hostiles . | . . . . . . . . . . . . . Parts Melted . | . . . . . . . . . . . . . Heat Transferred 250 | . . . . . . 250 . . . . . . Parts Sabotaged . | . . . . . . . . . . . . . Parts Stolen . | . . . . . . . . . . . . . Parts Stripped . | . . . . . . . . . . . . . Power Chain Reactions 3 | . . . . . . 3 . . . . . . Alert | -11 -10 -10 -10 -9 -8 -7 -6 -5 -5 -5 -5 -4 ------- Run | Yrd Mat Min Exi Min Mat Fac Fac Fac Upp Upp War Pro Peak Influence 437 | 10 152 141 . 88 396 437 288 379 . . . . Initial 200 | . 6 22 . . . 179 200 121 . . . . Average 178 | 2 71 102 . 42 144 271 210 201 . . . . Maximum Alert Level 2 | . . . . . 1 2 1 1 . . . . Low Security (%) 59 | 100 100 100 . 100 69 31 . 48 . . . . Level 1 30 | . . . . . 30 42 100 51 . . . . Level 2 10 | . . . . . . 25 . . . . . . Level 3 . | . . . . . . . . . . . . . Level 4 . | . . . . . . . . . . . . . Level 5 . | . . . . . . . . . . . . . High Security . | . . . . . . . . . . . . . Max Security . | . . . . . . . . . . . . . Squads Dispatched 19 | . 1 . . . 4 7 2 4 . . . 1 Investigation 3 | . . . . . . 1 1 1 . . . . Extermination 5 | . . . . . . 4 . 1 . . . . Reinforcement 9 | . 1 . . . 4 2 . 2 . . . . Assault 1 | . . . . . . . . . . . . 1 Garrison 1 | . . . . . . . 1 . . . . . Intercept . | . . . . . . . . . . . . . Searches Triggered . | . . . . . . . . . . . . . Construction Impeded 2 | . . . . . 1 1 . . . . . . Haulers Reinforced 2 | . . . . . . 1 . 1 . . . . Active Scanning Responses . | . . . . . . . . . . . . . Cargo Convoy Interrupts . | . . . . . . . . . . . . . Stealth | -11 -10 -10 -10 -9 -8 -7 -6 -5 -5 -5 -5 -4 --------- Run | Yrd Mat Min Exi Min Mat Fac Fac Fac Upp Upp War Pro Distress Signals 8 | . . . . . 3 . . 3 . . . 2 Communications Jammed . | . . . . . . . . . . . . . Distress Signals . | . . . . . . . . . . . . . Times Spotted 171 | . 11 3 . 2 35 25 5 32 9 13 11 25 Peak Tracking Total 13 | . 3 3 . 2 9 4 3 9 9 5 8 13 Tactical Retreats 33 | . 3 . . . 4 2 . 6 4 5 3 6 Traps | -11 -10 -10 -10 -9 -8 -7 -6 -5 -5 -5 -5 -4 ------- Run | Yrd Mat Min Exi Min Mat Fac Fac Fac Upp Upp War Pro Traps Triggered 4 | . . . . . . 1 . 2 . . 1 . Indirectly . | . . . . . . . . . . . . . Trap Hack Attempts . | . . . . . . . . . . . . . Triggered . | . . . . . . . . . . . . . Disarmed . | . . . . . . . . . . . . . Reprogrammed . | . . . . . . . . . . . . . Reused . | . . . . . . . . . . . . . Traps Extracted . | . . . . . . . . . . . . . Installed . | . . . . . . . . . . . . . Triggered 11 | . . . . . . . . . . . 11 . Machines | -11 -10 -10 -10 -9 -8 -7 -6 -5 -5 -5 -5 -4 ---------- Run | Yrd Mat Min Exi Min Mat Fac Fac Fac Upp Upp War Pro Machines Disabled 17 | . . 1 . . 4 10 2 . . . . . Max in Single Turn 8 | . . 1 . . 3 8 2 . . . . . Garrison Access 2 | . . . . . . . . 2 . . . . Machines Repaired . | . . . . . . . . . . . . . Machines Dismantled . | . . . . . . . . . . . . . Machines Sabotaged . | . . . . . . . . . . . . . Overloaded Fab Kills . | . . . . . . . . . . . . . Hacking | -11 -10 -10 -10 -9 -8 -7 -6 -5 -5 -5 -5 -4 --------- Run | Yrd Mat Min Exi Min Mat Fac Fac Fac Upp Upp War Pro Machines Accessed 41 | . 3 . 1 . 4 13 1 7 . 1 11 . Terminals 18 | . 2 . . . 4 9 . 3 . . . . Fabricators 1 | . . . . . . 1 . . . . . . Repair Stations 1 | . . . . . . 1 . . . . . . Recycling Units 1 | . 1 . . . . . . . . . . . Scanalyzers 1 | . . . . . . . . 1 . . . . Garrison Access 6 | . . . . . . 2 1 3 . . . . Total Hacks 97 | . 8 . 1 . 16 25 3 19 . 1 24 . Successful 55 | . 6 . 1 . 7 6 . 10 . 1 24 . Failed 42 | . 2 . . . 9 19 3 9 . . . . Catastrophic 9 | . . . . . 2 5 1 1 . . . . Database Lockouts . | . . . . . . . . . . . . . Manual 43 | . 5 . 1 . 14 16 . 7 . . . . Terminals 47 | . 6 . . . 16 18 . 7 . . . . Fabricators 1 | . . . . . . 1 . . . . . . Repair Stations 2 | . . . . . . 2 . . . . . . Recycling Units 2 | . 2 . . . . . . . . . . . Scanalyzers 6 | . . . . . . . . 6 . . . . Garrison Access 13 | . . . . . . 4 3 6 . . . . Terminal Hacks 32 | . 2 . 1 . 1 2 . 1 . 1 24 . Record 13 | . . . . . . 1 . . . . 12 . Prototype ID Bank 11 | . . . . . . . . . . . 11 . Open Door 2 | . . . . . . . . . . 1 1 . Open DSF 1 | . . . . . . 1 . . . . . . Terminal Index 3 | . 1 . . . 1 . . 1 . . . . Hauler Manifests 1 | . 1 . . . . . . . . . . . Derelict Proto ID Bank 1 | . . . 1 . . . . . . . . . Fabricator Hacks . | . . . . . . . . . . . . . Repair Station Hacks 1 | . . . . . . 1 . . . . . . Scan Component 1 | . . . . . . 1 . . . . . . Recycling Unit Hacks 1 | . 1 . . . . . . . . . . . Process 1 | . 1 . . . . . . . . . . . Scanalyzer 6 | . . . . . . . . 6 . . . . Insert Component 3 | . . . . . . . . 3 . . . . Analyze 3 | . . . . . . . . 3 . . . . Garrison Access Hacks 2 | . . . . . . . . 2 . . . . Seal Access 2 | . . . . . . . . 2 . . . . Unauthorized Hacks 13 | . 3 . . . 6 3 . 1 . . . . Terminals 13 | . 3 . . . 6 3 . 1 . . . . Track 2 | . 1 . . . 1 . . . . . . . Assimilate 1 | . . . . . 1 . . . . . . . Botnet 8 | . 1 . . . 4 2 . 1 . . . . Operators 2 | . 1 . . . . 1 . . . . . . Fabricators . | . . . . . . . . . . . . . Repair Stations . | . . . . . . . . . . . . . Recycling Units . | . . . . . . . . . . . . . Scanalyzers . | . . . . . . . . . . . . . Garrison Access . | . . . . . . . . . . . . . Data Cores Recovered . | . . . . . . . . . . . . . Used . | . . . . . . . . . . . . . Hacking Detections 25 | . 2 . . . 4 12 1 6 . . . . Full Trace Events 3 | . . . . . . 1 1 1 . . . . Feedback Events . | . . . . . . . . . . . . . Feedback Blocked . | . . . . . . . . . . . . . Robot Schematics Acquired . | . . . . . . . . . . . . . Robots Built . | . . . . . . . . . . . . . Authchips . | . . . . . . . . . . . . . Time . | . . . . . . . . . . . . . Total Robot Build Rating . | . . . . . . . . . . . . . Part Schematics Acquired 2 | . . . . . . . . 2 . . . . Parts Built . | . . . . . . . . . . . . . Authchips . | . . . . . . . . . . . . . Time . | . . . . . . . . . . . . . Total Part Build Rating . | . . . . . . . . . . . . . Parts Repaired . | . . . . . . . . . . . . . Time . | . . . . . . . . . . . . . Parts Recycled . | . . . . . . . . . . . . . Recycled Matter 47 | . 47 . . . . . . . . . . . Retrieved Matter . | . . . . . . . . . . . . . Retrieved Components . | . . . . . . . . . . . . . Parts Scanalyzed 3 | . . . . . . . . 3 . . . . Part Schematics Acquired 2 | . . . . . . . . 2 . . . . Parts Damaged . | . . . . . . . . . . . . . Bothacking | -11 -10 -10 -10 -9 -8 -7 -6 -5 -5 -5 -5 -4 ------------ Run | Yrd Mat Min Exi Min Mat Fac Fac Fac Upp Upp War Pro Used RIF Installer . | . . . . . . . . . . . . . Robots Hacked . | . . . . . . . . . . . . . Non-combat . | . . . . . . . . . . . . . Combat . | . . . . . . . . . . . . . Robot Hacks Applied . | . . . . . . . . . . . . . Relay Couplers Released 3 | . . . . . . 3 . . . . . . Programmers 3 | . . . . . . 3 . . . . . . Fabnet Peak Effective % . | . . . . . . . . . . . . . Robots Rewired . | . . . . . . . . . . . . . Allies Hacked . | . . . . . . . . . . . . . Hacks Repelled . | . . . . . . . . . . . . . Allies | -11 -10 -10 -10 -9 -8 -7 -6 -5 -5 -5 -5 -4 -------- Run | Yrd Mat Min Exi Min Mat Fac Fac Fac Upp Upp War Pro Total Allies 3 | . . 2 . . 1 . . . . . . . Largest Group 2 | . . 2 2 . 1 . . . . . . . Highest-Rated Group 42 | . . 42 42 . 10 . . . . . . . Highest-Rated Ally 31 | . . 31 31 . 10 . . . . . . . Total Orders . | . . . . . . . . . . . . . Ally Attacks . | . . . . . . . . . . . . . Total Damage . | . . . . . . . . . . . . . Kills . | . . . . . . . . . . . . . Allies Corrupted . | . . . . . . . . . . . . . Allies Melted . | . . . . . . . . . . . . . Intel | -11 -10 -10 -10 -9 -8 -7 -6 -5 -5 -5 -5 -4 ------- Run | Yrd Mat Min Exi Min Mat Fac Fac Fac Upp Upp War Pro Robot Analysis Total . | . . . . . . . . . . . . . Derelict Logs Recovered 8 | . . 3 . 1 . . . . 1 3 . . Drone Launches . | . . . . . . . . . . . . . Drone Recoveries . | . . . . . . . . . . . . . Exploration | -11 -10 -10 -10 -9 -8 -7 -6 -5 -5 -5 -5 -4 ------------- Run | Yrd Mat Min Exi Min Mat Fac Fac Fac Upp Upp War Pro Turns Passed 9143 | 193 667 507 450 776 652 2638 116 1081 230 508 1099 226 Spaces Moved 8599 | 113 351 302 279 464 427 2071 86 1852 533 846 960 315 Core 28 | 11 . . . . . . . . . . . 17 Treads 1562 | 102 351 302 279 464 64 . . . . . . . Legs 2529 | . . . . . 363 2071 86 9 . . . . Wheels . | . . . . . . . . . . . . . Hover 4480 | . . . . . . . . 1843 533 846 960 298 Flight . | . . . . . . . . . . . . . Fastest Speed 35 | 50 160 160 160 160 45 105 116 35 42 42 46 46 Average Speed 90 | 151 160 160 160 160 108 109 123 37 42 49 101 64 Slowest Speed 260 | 160 160 160 160 160 260 187 260 180 42 156 131 150 Overloaded Moves 11 | . . . . . 11 . . . . . . . Propulsion Burnouts . | . . . . . . . . . . . . . Robots Hopped . | . . . . . . . . . . . . . Cave-ins Triggered . | . . . . . . . . . . . . . Exploration Rate (%) 50 | 5 36 69 62 86 37 39 2 31 77 72 88 53 Regions Visited 12 Branch Regions 7 Pre-discovered Areas 2 | . . 1 . . . . . . . 1 . . Known Exits Taken 5 | . . . . . 1 . . 1 1 1 1 . Unknown Exits Taken 7 | 1 1 1 1 1 . 1 1 . . . . . Scrap Searched 6 | . . 1 . 1 . . . . 2 1 . 1 Spaces Dug 56 | . . . . . 1 25 1 29 . . . . Terrain Destroyed 343 | . . 26 . 34 116 98 39 30 . . . . Melee 54 | . . . . . 1 25 1 27 . . . . Projectile 3 | . . . . . . . . 3 . . . . AOE 286 | . . 26 . 34 115 73 38 . . . . . Terrain Rammed . | . . . . . . . . . . . . . Walls Destroyed . | . . . . . . . . . . . . . Machines Disabled . | . . . . . . . . . . . . . Actions | -11 -10 -10 -10 -9 -8 -7 -6 -5 -5 -5 -5 -4 --------- Run | Yrd Mat Min Exi Min Mat Fac Fac Fac Upp Upp War Pro Total 9533 | 129 400 323 284 482 541 2314 91 2116 536 904 1081 332 Wait 375 | 2 15 13 . 4 38 60 . 114 . 12 106 11 Move 8587 | 112 350 301 278 463 426 2070 85 1851 532 845 959 315 Hop . | . . . . . . . . . . . . . Pick Up 92 | 6 3 3 2 1 8 40 . 22 1 6 . . Fast Attach 42 | 5 . . . 2 6 6 . 11 . 1 11 . Attach 55 | 2 . . . . 9 12 2 16 1 13 . . Detach 14 | . . . . 1 . 4 . 2 . 7 . . Swap 37 | . 1 1 1 . 7 12 1 11 1 . 1 1 Drop 56 | . . 3 3 . 2 28 . 14 . 1 4 1 Fire 115 | 2 31 2 . 11 40 10 2 17 . . . . Melee 159 | . . . . . 5 72 1 57 1 19 . 4 Ram 1 | . . . . . . . . 1 . . . . Kick . | . . . . . . . . . . . . . Crush . | . . . . . . . . . . . . . Escape Stasis . | . . . . . . . . . . . . . Rewire . | . . . . . . . . . . . . . Trap . | . . . . . . . . . . . . . Miscellaneous . | . . . . . . . . . . . . . Route ------- -11/Scrapyard -10/Materials (discovered 3 exits: [*Mat] / [*Min] / [*Sub]) -10/Mines (discovered 3 exits: [*Mat x2] / *Exi) -10/Exiles -9/Mines -8/Materials (discovered 2 exits: *Fac x2) -7/Factory -6/Factory -5/Factory (discovered 2 exits: *Fac / *Upp) -5/Upper Caves -5/Upper Caves -5/Warlord -4/Proximity Caves History --------- Turn | Location | Event 37 | -11/Scrapyard | Discovered new exit (range 16) 194 | -11/Scrapyard | Entered Materials 309 | -10/Materials | Build established: Mutant 429 | -10/Materials | Discovered new exit (range 3) 628 | -10/Materials | Discovered new exit (range 8) 688 | -10/Materials | Discovered new exit (range 12) 861 | -10/Materials | Entered Mines 1010 | -10/Mines | Found a damaged Exp. Sensor Array with a note attached 1025 | -10/Mines | Found Prototype Device 1079 | -10/Mines | Learned Materials trap positions 1151 | -10/Mines | Discovered new exit (range 5) 1233 | -10/Mines | Received a Rocket Launcher from a helpful Derelict 1294 | -10/Mines | Learned Materials terminal intel 1294 | -10/Mines | Discovered new exit (range 9) 1296 | -10/Mines | Learned location of Zion (-6) 1349 | -10/Mines | Deemed a non-threat by the Exiles lab entrance 1350 | -10/Mines | Discovered new exit (range 5) 1368 | -10/Mines | Entered Exiles 1368 | -10/Exiles | Accompanied by 2 allies 1398 | -10/Exiles | Led the pair of lost Derelicts to a safe place 1408 | -10/Exiles | Met 8R-AWN 1434 | -10/Exiles | Met EX-HEX 1495 | -10/Exiles | Met EX-DEC 1517 | -10/Exiles | Met EX-BIN 1552 | -10/Exiles | Aligned with FarCom system 1554 | -10/Exiles | Given EX-Vault access code 1602 | -10/Exiles | Opened EX-Vault 1621 | -10/Exiles | Found Potential Leg 1623 | -10/Exiles | Found Potential Leg 1661 | -10/Exiles | Warned to stay clear of 0b10 Research branches 1802 | -10/Exiles | Discovered new exit (range 12) 1818 | -10/Exiles | Left Exiles lab with Potential Leg 1818 | -10/Exiles | Entered Mines 2332 | -9/Mines | Learned 8 Materials zone layouts 2458 | -9/Mines | Discovered new exit (range 5) 2594 | -9/Mines | Entered Materials 2594 | -8/Materials | Evolved 4 slots: Propulsion x2, Utility x2 2595 | -8/Materials | Identified exit to Factory 2596 | -8/Materials | Loaded intel: 16 trap records 2597 | -8/Materials | Loaded intel: 12 terminal locations 3040 | -8/Materials | Lost 6 parts (1p1n1u3w) 3226 | -8/Materials | Discovered exit to Factory (range 15) 3246 | -8/Materials | Entered Factory 3246 | -7/Factory | Evolved 2 slots: Propulsion x1, Utility x1 3265 | -7/Factory | Lost 4 parts (1p2u1w) 3315 | -7/Factory | Identified Exp. Sensor Array 4664 | -7/Factory | Discovered new exit (range 16) 5175 | -7/Factory | Build established: Scavenger-Mutant 5604 | -7/Factory | Build established: Scavenger-Gladiator 5884 | -7/Factory | Entered another Factory area 5884 | -6/Factory | Evolved 2 slots: Propulsion x1, Weapon x1 5959 | -6/Factory | Discovered new exit (range 6) 5981 | -6/Factory | Garrison activated, responded to threat 6000 | -6/Factory | Entered another Factory area 6000 | -5/Factory | Evolved 2 slots: Power x1, Utility x1 6022 | -5/Factory | Lost 7 parts (4n1u2w) 6157 | -5/Factory | Discovered new exit (range 9) 6319 | -5/Factory | Build established: Scavenger-Scout 6337 | -5/Factory | Lost 3 parts (1n1u1w) 6644 | -5/Factory | Lost 6 parts (2p1n3u) 6802 | -5/Factory | Identified exit to Factory 7079 | -5/Factory | Discovered new exit (range 5) 7080 | -5/Factory | Identified exit to Upper Caves 7081 | -5/Factory | Entered Upper Caves 7122 | -5/Upper Caves | Encountered a Warlord checkpoint 7140 | -5/Upper Caves | Build established: Scavenger-Gladiator 7182 | -5/Upper Caves | Attracted the attention of an 0b10 outpost 7229 | -5/Upper Caves | Learned Factory stockpile data 7263 | -5/Upper Caves | Discovered new exit (range 10) 7266 | -5/Upper Caves | Identified exit to Upper Caves 7311 | -5/Upper Caves | Entered another Upper Caves area 7331 | -5/Upper Caves | Learned location of 1 exit from Factory 7346 | -5/Upper Caves | Learned location of 1 exit from Factory 7382 | -5/Upper Caves | Learned location of Armory (-3) 7391 | -5/Upper Caves | Spotted B-75 Beast 7515 | -5/Upper Caves | Lost 8 parts (2p2n3u1w) 7718 | -5/Upper Caves | Lost 5 parts (1p3n1u) 7798 | -5/Upper Caves | Core integrity fell below 50% 7805 | -5/Upper Caves | Discovered new exit (range 15) 7818 | -5/Upper Caves | Identified exit to Warlord 7819 | -5/Upper Caves | Entered Warlord 7863 | -5/Warlord | System corruption cleaned by Quarantine Array 8061 | -5/Warlord | Build established: Gladiator 8127 | -5/Warlord | Met Warlord 8150 | -5/Warlord | Warlord's base attacked by MAIN.C 8500 | -5/Warlord | Warlord forces counterattacked 8592 | -5/Warlord | Found Prototype Energy Gun 8592 | -5/Warlord | Identified Vortex Shotgun 8709 | -5/Warlord | Spotted Executioner 8825 | -5/Warlord | Warlord base infiltrated, sounded retreat 8912 | -5/Warlord | Discovered new exit (range 14) 8918 | -5/Warlord | Identified exit to Proximity Caves 8918 | -5/Warlord | Entered Proximity Caves 8920 | -4/Proximity Caves | Spotter reported a threat 8921 | -4/Proximity Caves | Spotter reported a threat 8952 | -4/Proximity Caves | Attracted the attention of an 0b10 outpost 8973 | -4/Proximity Caves | Spotter reported a threat 8994 | -4/Proximity Caves | Spotter reported a threat 9050 | -4/Proximity Caves | Lost 3 parts (1p2n) 9108 | -4/Proximity Caves | Lost 4 parts (1p1n2u) 9119 | -4/Proximity Caves | Core integrity fell below 20% 9144 | -4/Proximity Caves | Destroyed by G-73 Enforcer with Phase Gun Last Messages --------------- 09105_ Searching scrap... 09105_ Found KE Penetrator. 09105_ Found Transmission Jammer. 09105_ Found Imp. Particle Charger. 09105_ Found Imp. Kinecellerator. 09105_ Found 24 Matter. 09107_ Slug penetrates Wall. 09107_ Penetrated by Slug. 09114_ Imp. Melee Analysis Suite destroyed. 09118_ Antigrav System destroyed. 09134_ Slug penetrates Wall. 09134_ Microactuators destroyed. 09134_ Slug penetrates Wall. 09134_ Penetrated by Slug. 09137_ Slug penetrates Wall. 09137_ Penetrated by Slug. 09140_ Wall collapses. 09142_ Powered Hammer destroyed. 09142_ Slug penetrates Wall. 09144_ M-36 Artificer repairs Lgt. Nuclear Core. Map ----- +----------------------------------------------------+ | #?# ?????????# ###????????? | | ?# ## ### #?# #??????????# ?????????? | | ?# ####?# ### ##?????????# ?????????? | | ?# #?## ##???????? ??????????? | | ?## #??## ###??????# ??????????? | | ### ##???# ##?????# #??????????? | | ## ###????# #?????# #??????????? | | ##??????# ##????# ##?????????? | | ####????## ### ##???# #?????????? | | ### #?????######?# #???# #?????????? | | ??# ##???????????# ###### #??????????? | | ?# #???????????### ### #???????????? | | ?### ### #?????????????## ## ######??????? | | #######?# #??????????????## ## #??????? | | ###??# #??????####?????# ##?????? | | ##? #?????## ##????# ###???? | | ## #?????# ##???## ##??? | | ### ####???# ####?# ######### #??? | | #?#### ##??# #?###???????# ##??? | | ##??## #??# ##???????????# ###???? | | ####???# #??## #????????????# ##?????? | | ##??????# #???# #????????????# #??????? | | #??####?# #??## #????????????# ##?????? | | #### ### #### s ####?????????# ###???? | | ## # h l ##????????# ##### | | ##### m @ #????????## # | | ##??# ;## ##?????????# | | ### ##?# #?## ##?????###### ##### # | | ??# #?## #??# #####?## ## ##?????# | | ??#### ### #?####??# g## ### !! #??????? | | ?????# ########???????# gg !% #??????? | | ?????# ##???????# [ ##??????? | | ?????# ##?????# ## ###???????? | | ?????## ##????##### #### ##?????????? | | #####?## ##???????# $ ##??####??????????? | | ## #???????# #?????????????????? | | #?????? $ ?????????????????? | | #### ##???? #### #????????????????? | | ???# #?????# #???# #????????????????? | | ??# ### #?????### ##???? #????????????????? | | ??## #??# ??????# ??????# ##????????????????? | | ???###???# "% ????# ???????###?????????????????? | | ?????????# " ??# ???????????????????????????? | | ?????????## #?????????????????????????????? | | ??????????# ????????????????????????????? | | ??????????# ??????????????????????????? | | ?????????? """ ##### ?????????????????????????? | | ??????????"""" #????? ?????????????????????????? | | ?????????? """ #?????? ?????????????????????????? | | ?????????? ? #????????????????????????????????? | +----------------------------------------------------+ Best States ------------- Heat Dissipation 41 Energy Generation 27 Energy Capacity 340 Matter Stores 300 Matter Capacity 300 Sight Range 16 Terrain Scan Density 10 Additional Mass Support 6 Base Temperature (-) 100 Armor Coverage 750 Resistance: KI 25 Resistance: TH 10 Propulsion Shielding 33 Weapon Shielding 66 Melee Speed Boost 20 Evasion (%) 58 Targeting Accuracy 8 Melee Accuracy 6 Recoil Reduction 2 Offensive Hacking 10 Item Schematics ----------------- Imp. Airjet | -5/Factory | Scanalyzed Powered Hammer | -5/Factory | Scanalyzed Robot Schematics ------------------ None Fabricated ------------ Nothing Alien Tech Used ----------------- None Achievements -------------- None Challenges ------------ None Game ------ Seed CommSpikedWarhead Manual? 0 Play Time 02:24:57 Cumulative 49.7 hours Start 2024.07.20 @ 00:15:07 End 2024.07.21 @ 19:55:14 Sessions 7 Manual Loads 0 Difficulty Rogue Special Mode None Game No. 72 Rogue 72 Adventurer 0 Explorer 0 Win Type - Total 0 Types 0/0/0/0/0/0/0/0/0 Lore% 29 Gallery% 32 Achievement% 33 Wizard Run 0 Options --------- Layout 0 ASCII 0 Keyboard 0 Movement Arrows Keybinds 0 Fullscreen 2 Font 18/SmallcapsGlow Map View 76x50 Zoom Use 0% Tactical HUD 1 Map Filters NONE Filters NONE Steam 1 RUN: d430d052-dda0-4b8e-85ce-2c72de428806